bitfinex/quotes_ETHUSD_20250326
["timestamp","ask_amount","ask_price","bid_price","bid_amount"]
[1742960702127,2.04838347,2048.4,2048.2,0.7723]
[1742960702331,6.93032347,2048.4,2048.2,0.7723]
[1742960702531,4.88223,2048.3,2048.1,0.02]
[1742960702900,6.93071347,2048.2,2048.1,0.02]
[1742960704930,4.701,2048.3,2048.1,0.02]
[1742960705131,4.701,2048.3,2048.2,0.7723]
[1742960706103,4.701,2048.3,2048.2,1.84008251]
[1742960706303,4.701,2048.3,2048.2,6.72241251]
[1742960706505,2.04838347,2048.6,2048.2,11.60457251]
[1742960706704,2.04838347,2048.6,2048.3,4.88206]
[1742960706919,2.04838347,2048.6,2048.2,6.72236251]
[1742960707105,2.04838347,2048.6,2048.3,14.5]
[1742960707304,2.04838347,2048.6,2048.4,0.7723]
[1742960707532,11.63055347,2048.7,2048.4,0.7723]
[1742960707731,6.74938347,2048.7,2048.4,0.7723]
[1742960707939,11.63063347,2048.7,2048.4,0.7723]
[1742960709855,6.74938347,2048.7,2048.4,0.7723]
[1742960710010,32.864,2049.1,2048.7,4.88105]
[1742960710356,3.0,2049.0,2048.8,0.7971]
[1742960711136,4.698,2049.2,2048.9,4.88065]
[1742960711339,4.698,2049.2,2048.9,0.7971]
[1742960711542,6.74638347,2049.2,2048.9,5.67771]
[1742960712121,6.74638347,2049.2,2048.9,0.7971]
[1742960712330,11.62636347,2049.2,2048.9,0.7971]
[1742960713353,6.74638347,2049.2,2048.9,0.7971]
[1742960715860,11.62639347,2049.2,2048.9,0.7971]
[1742960716067,6.74638347,2049.2,2048.9,0.7971]
[1742960716431,11.62642347,2049.2,2048.9,0.7971]
[1742960717434,6.74638347,2049.2,2048.9,0.7971]
[1742960717659,6.74638347,2049.2,2048.9,6.245489]
[1742960717965,6.74638347,2049.2,2048.9,6.245469]
[1742960718164,6.74638347,2049.2,2048.9,1.364879]
[1742960718461,2.04838347,2049.0,2048.8,0.7971]
[1742960720162,6.92884347,2049.0,2048.8,0.7971]
[1742960720368,6.92884347,2049.0,2048.6,5.67825]
[1742960720938,2.04838347,2049.0,2048.6,5.67825]
[1742960721756,6.92883347,2049.0,2048.6,5.67825]
[1742960721935,6.92883347,2049.0,2048.6,8.28404772]
[1742960722441,4.687,2049.1,2048.7,4.881]
[1742960722647,11.61563347,2049.1,2048.7,4.881]
[1742960723767,4.687,2049.1,2048.9,4.88062]
[1742960723971,9.56596,2049.2,2048.9,0.7831]
[1742960724164,9.56596,2049.2,2048.9,15.2831]
[1742960724766,9.56596,2049.2,2048.9,0.7831]
[1742960725839,4.686,2049.2,2048.9,6.97255389]
[1742960726282,6.73038347,2049.3,2048.9,6.97248389]
[1742960726481,6.73038347,2049.3,2049.0,4.88038]
[1742960727040,6.73038347,2049.3,2048.9,11.85297389]
[1742960727239,6.73038347,2049.3,2049.0,7.51569739]
[1742960727736,8.643,2049.5,2049.0,7.51557739]
[1742960727980,3.0,2049.5,2049.2,4.87986]
[1742960728159,7.681,2049.5,2049.2,5.65106]
[1742960728338,3.0,2049.5,2049.2,5.65106]
[1742960728542,6.73338347,2049.8,2049.4,4.87936]
[1742960728749,3.0,2049.7,2049.4,4.87936]
[1742960728969,32.855,2049.9,2049.5,5.65028]
[1742960729150,11.61176347,2049.9,2049.5,5.65028]
[1742960729353,6.73338347,2049.9,2049.5,10.52932]
[1742960729548,6.73338347,2049.9,2049.6,4.87894]
[1742960729861,4.685,2049.9,2049.6,4.87878]
[1742960730062,6.92613347,2050.2,2049.7,4.87863]
[1742960730267,11.61113347,2050.2,2049.8,0.7712]
[1742960730442,3.0,2050.1,2049.9,4.87816]
[1742960730642,3.0,2050.1,2049.8,0.7712]
[1742960730943,2.04838347,2050.0,2049.8,0.7712]
[1742960731154,6.92651347,2050.0,2049.8,0.7712]
[1742960731377,0.7674,2049.9,2049.3,5.65077]
[1742960731672,11.80617347,2049.7,2049.3,0.7712]
[1742960731870,4.87914,2049.6,2049.1,5.65128]
[1742960732070,4.87914,2049.6,2049.1,11.45770917]
[1742960732584,7.69508347,2049.5,2049.1,6.57762917]
[1742960732969,4.87913,2049.6,2049.1,6.57762917]
[1742960733297,4.87913,2049.6,2049.2,4.87986]
[1742960734674,11.61415347,2049.7,2049.3,4.87952]
[1742960734675,11.61423347,2049.7,2049.3,4.87952]
[1742960736265,6.73538347,2049.7,2049.4,4.87946]
[1742960736449,16.49311347,2049.7,2049.2,5.65109]
[1742960736655,6.92765347,2049.5,2049.0,5.65156]
[1742960736855,11.80704347,2049.5,2049.0,8.154771]
[1742960737270,6.92765347,2049.5,2049.0,8.154771]
[1742960737477,6.92765347,2049.5,2049.0,13.035001]
[1742960737677,6.92765347,2049.5,2049.1,4.88015]
[1742960737978,0.7674,2049.6,2049.2,4.87991]
[1742960738145,5.64641,2049.6,2049.1,4.88015]
[1742960738347,10.52561,2049.6,2049.1,4.88015]
[1742960738646,5.64641,2049.6,2049.2,4.87992]
[1742960738959,2.04838347,2049.5,2049.1,6.15994391]
[1742960739458,6.92771347,2049.5,2049.0,8.154731]
[1742960739776,6.92771347,2049.5,2049.1,4.88018]
[1742960740165,6.92771347,2049.5,2049.0,5.65152]
[1742960740483,6.92866347,2049.1,2048.8,0.7659]
[1742960740647,2.04838347,2049.1,2048.6,0.7659]
[1742960740843,4.88065,2049.0,2048.6,5.64726]
[1742960741448,4.88067,2048.9,2048.6,0.7659]
[1742960742075,4.88067,2048.9,2048.5,4.88151]
[1742960742277,4.88067,2048.9,2048.1,0.02]
[1742960742278,2.04838347,2048.7,2048.2,5.648]
[1742960742599,6.93017347,2048.5,2048.1,0.02]
[1742960742922,6.93017347,2048.5,2048.1,0.59889051]
[1742960743199,6.93017347,2048.5,2048.1,5.48144051]
[1742960743404,4.88227,2048.3,2048.1,0.02]
[1742960743710,5.67417,2048.3,2048.1,0.02]
[1742960746450,5.67413,2048.3,2048.1,0.02]
[1742960747085,4.88233,2048.2,2048.1,0.02]
[1742960749211,2.84028347,2048.3,2048.1,0.02]
[1742960749350,4.88175,2048.5,2048.1,0.02]
[1742960749351,3.0,2048.4,2048.1,0.02]
[1742960749552,5.84028347,2048.5,2048.1,0.02]
[1742960749773,10.72191347,2048.5,2048.1,0.02]
[1742960749974,4.88186,2048.4,2048.1,0.02]
[1742960750351,4.88233,2048.2,2048.1,0.02]
[1742960750584,6.93062347,2048.3,2048.1,0.02]
[1742960750751,6.93059347,2048.3,2048.1,0.02]
[1742960750951,11.81282347,2048.3,2048.1,0.02]
[1742960751151,4.88233,2048.2,2048.1,0.02]
[1742960752177,5.67423,2048.2,2048.1,0.02]
[1742960752954,9.22423,2048.2,2048.1,0.02]
[1742960754183,9.22423,2048.2,2046.8,6.93402347]
[1742960754184,0.7722,2047.8,2046.9,0.7814]
[1742960754381,0.7722,2047.8,2046.3,1.46857]
[1742960754382,2.04838347,2047.1,2046.7,4.88579]
[1742960754600,6.77338347,2047.1,2046.7,4.88579]
[1742960754803,4.725,2047.5,2046.7,5.452629]
[1742960754957,4.725,2047.5,2047.3,0.7814]
[1742960755152,4.725,2047.5,2047.3,5.66584]
[1742960755358,4.725,2047.5,2047.3,0.7814]
[1742960755601,4.88378,2047.6,2047.3,0.7814]
[1742960755899,4.729,2047.6,2047.3,0.7814]
[1742960756096,11.81580347,2047.7,2047.3,0.7814]
[1742960756307,4.729,2047.6,2047.3,0.7814]
[1742960756470,4.729,2047.6,2047.3,5.66579]
[1742960756889,4.729,2047.6,2047.3,5.66576]
[1742960757264,4.729,2047.6,2047.2,4.8847]
[1742960757265,4.8838,2047.6,2047.2,4.8847]
[1742960757457,9.6118,2047.6,2047.2,4.8847]
[1742960758087,9.6108,2047.6,2047.2,4.8847]
[1742960758581,4.8838,2047.6,2047.2,4.8847]
[1742960758781,6.77338347,2047.5,2047.1,5.6662]
[1742960758985,6.77338347,2047.5,2047.2,4.88461]
[1742960759155,6.77338347,2047.5,2047.2,4.88451]
[1742960759355,4.725,2047.5,2047.2,9.76913]
[1742960759565,4.725,2047.5,2047.2,4.88451]
[1742960760301,6.77338347,2047.5,2047.1,5.6663]
[1742960760456,11.65750347,2047.5,2047.1,5.6663]
[1742960760656,11.65750347,2047.5,2047.1,0.7814]
[1742960760865,4.88435,2047.4,2047.1,0.7814]
[1742960761355,4.88435,2047.4,2047.0,9.77008]
[1742960761356,6.93290347,2047.3,2046.9,0.7814]
[1742960761555,4.88482,2047.2,2046.9,0.7814]
[1742960761873,6.93290347,2047.3,2046.9,0.7814]
[1742960761874,6.93290347,2047.3,2046.9,5.66677]
[1742960762051,11.81760347,2047.3,2046.9,0.7814]
[1742960762251,11.81758347,2047.3,2046.8,4.88562]
[1742960762585,6.93290347,2047.3,2046.8,4.88562]
[1742960762884,2.04838347,2047.1,2046.7,0.7814]
[1742960763088,2.04838347,2046.9,2046.6,4.88609]
[1742960763252,2.04838347,2046.9,2046.7,4.88589]
[1742960763455,11.68333347,2047.1,2046.6,4.88603]
[1742960763655,6.79838347,2047.1,2046.7,4.8858]
[1742960763872,4.749,2047.2,2046.9,0.7814]
[1742960764075,4.749,2047.2,2046.6,9.77205]
[1742960764076,4.8852,2047.0,2046.6,9.77205]
[1742960764279,5.6572,2047.1,2046.7,4.88582]
[1742960764483,4.885,2047.1,2046.7,4.88581]
[1742960764682,4.885,2047.1,2046.6,4.88614]
[1742960764864,2.04838347,2047.0,2046.6,4.88611]
[1742960765183,6.93367347,2047.0,2046.6,5.66751]
[1742960765380,6.93367347,2047.0,2046.6,0.7814]
[1742960765587,4.88561,2046.9,2046.6,0.7814]
[1742960765965,6.93362347,2047.0,2046.6,5.66751]
[1742960767387,2.04838347,2047.0,2046.5,4.8862]
[1742960767587,6.93363347,2047.0,2046.4,0.7814]
[1742960767882,4.88557,2046.9,2046.5,4.88634]
[1742960768088,9.64957,2046.9,2046.5,4.88634]
[1742960768683,4.764,2046.9,2046.5,4.88634]
[1742960768857,4.88507,2047.1,2046.8,0.7814]
[1742960769059,7.70544347,2047.2,2046.8,5.66702]
[1742960769285,4.88621,2046.6,2046.2,5.4803719]
[1742960769483,6.93424347,2046.8,2046.3,4.88673]
[1742960769686,2.04838347,2046.8,2046.2,6.2634719]
[1742960769867,4.798,2046.9,2046.6,4.88605]
[1742960770384,4.798,2046.9,2046.5,4.88625]
[1742960770569,9.68355,2046.9,2046.5,4.88625]
[1742960771085,4.798,2046.9,2046.7,4.88586]
[1742960771591,4.798,2046.9,2046.6,4.88608]
[1742960771758,4.798,2046.9,2046.6,9.77206]
[1742960771959,4.798,2046.9,2046.6,4.88598]
[1742960772158,4.798,2046.9,2046.7,4.88588]
[1742960772389,4.798,2046.9,2046.6,4.8861]
[1742960772556,4.798,2046.9,2046.6,4.88604]
[1742960772760,4.798,2046.9,2046.6,9.77208]
[1742960772996,4.798,2046.9,2046.6,4.88604]
[1742960773889,4.798,2046.9,2046.6,9.77201]
[1742960774075,4.798,2046.9,2046.7,4.88579]
[1742960774794,4.789,2047.1,2046.8,4.8855]
[1742960774969,4.789,2047.1,2046.8,9.771]
[1742960775172,4.789,2047.1,2046.9,4.88541]
[1742960775382,2.04838347,2047.2,2046.9,4.88541]
[1742960775690,2.04838347,2047.2,2046.7,5.66877]
[1742960775691,11.72012347,2047.2,2046.8,4.88565]
[1742960775896,6.83538347,2047.2,2046.8,4.8855]
[1742960776090,11.72019347,2047.2,2046.8,4.8855]
[1742960777094,6.83538347,2047.2,2046.9,4.88543]
[1742960777296,4.787,2047.2,2047.0,4.88508]
[1742960777495,4.787,2047.2,2046.9,4.88543]
[1742960777496,4.787,2047.2,2046.9,9.77077]
[1742960777707,9.83338347,2047.3,2046.9,4.88534]
[1742960777992,2.04838347,2047.3,2047.1,4.88488]
[1742960778172,5.5596,2047.5,2047.2,4.88455]
[1742960778381,6.83238347,2047.5,2047.2,4.88455]
[1742960778693,10.45212,2047.7,2047.3,4.88437]
[1742960778893,6.84138347,2047.6,2047.3,4.88437]
[1742960779067,6.84138347,2047.6,2047.3,4.88432]
[1742960779488,6.84138347,2047.6,2047.2,4.88465]
[1742960779667,2.04838347,2047.4,2047.2,4.88461]
[1742960780105,7.70831347,2047.4,2047.0,5.66809]
[1742960780283,2.04838347,2047.2,2047.0,5.66809]
[1742960780801,2.04838347,2047.4,2047.1,4.88486]
[1742960781708,2.04838347,2047.5,2047.2,4.88458]
[1742960782005,6.83638347,2047.5,2047.0,5.66811]
[1742960782173,6.83638347,2047.5,2047.2,4.88466]
[1742960782373,2.04838347,2047.3,2047.1,4.88486]
[1742960782574,2.04838347,2047.3,2047.0,5.66828]
[1742960782978,2.04838347,2047.3,2047.0,5.66811]
[1742960783284,11.72049347,2047.5,2047.1,4.88486]
[1742960783594,28.179,2047.8,2047.3,0.7831]
[1742960783595,0.7756,2047.8,2047.3,0.7831]
[1742960783903,4.60450906,2047.9,2047.5,9.76786]
[1742960784105,4.60450906,2047.9,2047.5,4.88388]
[1742960784575,4.60450906,2047.9,2047.6,4.88363]
[1742960784771,2.55612559,2047.9,2047.8,4.88328]
[1742960784970,2.55612559,2047.9,2047.7,5.65388]
[1742960784971,2.55612559,2047.9,2047.7,10.53726]
[1742960785407,2.55612559,2047.9,2047.7,0.7704]
[1742960785594,2.55612559,2047.9,2047.5,5.65439]
[1742960785776,2.55612559,2047.9,2047.6,4.88376]
[1742960786208,2.55612559,2047.9,2047.5,5.65439]
[1742960786398,2.04838347,2047.8,2047.5,10.53824]
[1742960786577,2.55612559,2047.9,2047.6,4.88372]
[1742960787279,2.55612559,2047.9,2047.5,0.7704]
[1742960787481,2.04838347,2047.8,2047.4,4.88418]
[1742960787809,2.04838347,2047.8,2047.5,4.88387]
[1742960788511,3.34632559,2047.9,2047.5,4.88387]
[1742960788806,2.55612559,2047.9,2047.7,5.65376]
[1742960788976,2.55612559,2047.9,2047.7,10.53716]
[1742960789178,2.55612559,2047.9,2047.7,5.65376]
[1742960789579,2.55612559,2047.9,2047.7,0.7704]
[1742960789779,2.55612559,2047.9,2047.7,5.65389]
[1742960789978,2.55612559,2047.9,2047.8,4.88328]
[1742960790178,2.55612559,2047.9,2047.7,5.65389]
[1742960790883,2.55612559,2047.9,2047.8,4.88328]
[1742960791515,2.55612559,2047.9,2047.8,5.936985]
[1742960792028,2.55612559,2047.9,2047.8,20.436985]
[1742960792311,2.55612559,2047.9,2047.8,14.5]
[1742960792485,2.55612559,2047.9,2047.7,4.88337]
[1742960792814,2.55612559,2047.9,2047.7,9.76672]
[1742960793191,2.55612559,2047.9,2047.7,4.8835]
[1742960794907,2.55612559,2047.9,2047.8,4.88328]
[1742960798013,2.55612559,2047.9,2047.8,7.386981]
[1742960798219,4.779,2048.3,2048.0,4.8826]
[1742960799325,4.779,2048.3,2048.1,4.88246]
[1742960799530,5.5662,2048.5,2048.2,4.88233]
[1742960799823,3.0,2048.6,2048.3,4.88193]
[1742960800032,4.777,2048.5,2048.3,4.88193]
[1742960805833,4.777,2048.5,2048.3,4.88187]
[1742960806228,4.777,2048.5,2048.3,9.76387]
[1742960806432,8.5502,2048.7,2048.4,4.88184]
[1742960807522,8.5502,2048.7,2048.3,5.70973]
[1742960808113,13.43143,2048.7,2048.3,5.70973]
[1742960810251,4.88139,2048.6,2048.2,4.88212]
[1742960810438,4.88139,2048.6,2048.2,9.76435]
[1742960810640,0.7513,2048.9,2048.2,2.509205]
[1742960810821,3.0,2048.7,2048.4,4.88174]
[1742960811722,7.88119,2048.7,2048.3,4.88203]
[1742960812851,3.0,2048.7,2048.4,4.88185]
[1742960813643,3.0,2048.7,2048.4,4.88166]
[1742960816219,3.0,2048.7,2048.3,4.88208]
[1742960816421,3.0,2048.7,2048.3,11.57321077]
[1742960816715,3.0,2048.7,2048.4,4.8818]
[1742960816916,3.0,2048.7,2048.3,6.69113077]
[1742960817154,5.63738,2048.6,2048.2,19.38228]
[1742960817347,5.63738,2048.6,2048.1,5.71012]
[1742960817521,5.63738,2048.6,2048.2,4.88222]
[1742960819865,10.51897,2048.6,2048.2,4.88222]
[1742960820164,10.51895,2048.6,2048.2,4.88222]
[1742960820361,4.88196,2048.4,2047.9,0.7778]
[1742960820664,0.7559,2048.2,2047.9,5.30916944]
[1742960820985,0.7559,2048.2,2048.0,4.88276]
[1742960821345,5.5209,2048.3,2048.0,4.88269]
[1742960821686,5.5209,2048.3,2048.0,4.88265]
[1742960822153,10.40307,2048.3,2047.9,19.80920944]
[1742960822355,4.88244,2048.2,2047.9,14.5]
[1742960822663,4.88285,2048.0,2047.6,4.88372]
[1742960822867,5.66975,2048.0,2047.6,4.88372]
[1742960823037,5.66975,2048.0,2047.6,14.5]
[1742960823239,5.66974,2048.0,2047.6,14.5]
[1742960823650,4.88306,2047.9,2047.6,14.5]
[1742960823850,5.66974,2048.0,2047.6,4.88364]
[1742960824164,5.66974,2048.0,2047.5,4.88383]
[1742960824365,0.7869,2048.0,2047.5,19.38383]
[1742960824568,0.7869,2048.0,2047.7,4.88349]
[1742960824770,0.7869,2048.2,2048.0,9.76543]
[1742960824951,4.736,2048.3,2048.0,9.76531]
[1742960825153,4.736,2048.3,2048.0,4.88261]
[1742960825353,4.736,2048.3,2048.0,9.76529]
[1742960825740,3.0,2048.5,2048.1,9.76489]
[1742960825942,4.737,2048.5,2048.2,4.88218]
[1742960826370,4.737,2048.5,2048.3,14.5]
[1742960826979,4.737,2048.5,2048.2,4.88223]
[1742960827358,4.737,2048.5,2048.2,19.38223]
[1742960827673,4.737,2048.5,2048.2,21.9890729]
[1742960828477,4.737,2048.5,2048.2,17.1068429]
[1742960828846,9.61865,2048.5,2048.2,14.5]
[1742960829044,4.737,2048.5,2048.2,14.5]
[1742960829458,3.0,2048.7,2048.4,4.88185]
[1742960829664,7.732,2048.7,2048.4,4.88185]
[1742960830189,3.0,2048.7,2048.4,4.88185]
[1742960830480,3.8227,2048.8,2048.4,7.308093]
[1742960830660,8.5527,2048.8,2048.4,7.308093]
[1742960830861,8.5527,2048.8,2048.4,8.113693]
[1742960831070,28.175,2049.4,2048.5,4.88148]
[1742960831071,5.70317,2049.0,2048.5,4.88148]
[1742960831382,9.61268,2048.9,2048.5,4.88148]
[1742960832985,9.61268,2048.9,2048.4,8.113693]
[1742960833187,11.66106347,2048.9,2048.4,7.308093]
[1742960833886,4.88096,2048.8,2048.4,7.308093]
[1742960834382,11.66106347,2048.9,2048.5,6.1005983]
[1742960834955,9.61268,2048.9,2048.5,6.9061983]
[1742960835584,14.49345,2048.9,2048.5,6.9061983]
[1742960835887,4.88094,2048.8,2048.5,0.8056]
[1742960836385,4.88094,2048.8,2048.4,4.8817]
[1742960836991,4.88094,2048.8,2048.4,9.76337]
[1742960837488,4.88094,2048.8,2048.4,9.76341]
[1742960837685,4.88094,2048.8,2048.4,9.76335]
[1742960837890,13.46367567,2050.2,2048.2,14.5]
[1742960837891,0.55,2049.5,2048.7,0.8056]
[1742960838187,0.8227,2049.2,2048.9,4.88057]
[1742960838387,4.719,2049.3,2048.9,4.88049]
[1742960838559,4.719,2049.3,2048.7,2.85398347]
[1742960838560,28.175,2049.4,2049.1,4.88007]
[1742960838760,32.895,2049.4,2049.2,4.87985]
[1742960838965,4.72,2049.4,2049.1,4.88001]
[1742960840179,4.72,2049.4,2049.0,0.8056]
[1742960840385,4.72,2049.4,2049.0,5.68588]
[1742960840598,8.70168,2049.7,2049.2,4.87978]
[1742960840780,4.87909,2049.6,2049.2,4.8799]
[1742960841595,12.47097347,2049.7,2049.2,9.75962]
[1742960841789,12.47097347,2049.7,2049.1,4.88014]
[1742960842090,12.47097347,2049.7,2049.0,1.374188]
[1742960842091,4.87961,2049.4,2049.0,1.374188]
[1742960842391,5.70231,2049.4,2048.8,5.68631]
[1742960842596,5.70231,2049.4,2048.9,4.88056]
[1742960842781,5.70231,2049.4,2048.9,4.8805]
[1742960842982,4.87972,2049.3,2048.9,4.8805]
[1742960843185,4.87972,2049.3,2048.9,5.937205]
[1742960843496,4.87972,2049.3,2048.9,10.817755]
[1742960843658,4.87972,2049.3,2048.9,5.937205]
[1742960843863,4.87972,2049.3,2048.9,10.817775]
[1742960844084,4.87972,2049.3,2048.9,10.817755]
[1742960844263,4.87972,2049.3,2048.9,5.937205]
[1742960845502,5.70231,2049.4,2048.9,10.817755]
[1742960845694,5.70227,2049.4,2049.0,1.1623355]
[1742960846275,5.70227,2049.4,2048.9,9.76105]
[1742960846474,10.58195,2049.4,2048.9,9.76106]
[1742960846676,5.70227,2049.4,2048.9,9.76099]
[1742960846975,5.70227,2049.4,2048.9,9.76101]
[1742960847387,10.58189,2049.4,2048.9,9.76105]
[1742960847605,10.58189,2049.4,2048.9,4.88049]
[1742960847606,10.58191,2049.4,2048.9,4.88049]
[1742960847806,4.87975,2049.3,2048.9,4.88049]
[1742960849028,4.87998,2049.2,2048.8,0.8056]
[1742960849222,4.87998,2049.2,2048.5,0.7738]
[1742960849223,5.67883,2048.9,2048.5,0.7738]
[1742960849432,4.88094,2048.8,2048.5,0.7738]
[1742960849721,5.67883,2048.9,2048.5,0.7738]
[1742960850029,3.798,2049.1,2048.7,4.88104]
[1742960850207,3.0,2049.1,2048.8,4.88081]
[1742960850378,3.0,2049.1,2048.8,5.65461]
[1742960850836,3.0,2049.1,2048.8,0.7738]
[1742960850837,7.8802,2049.1,2048.8,0.7738]
[1742960851028,4.8802,2049.1,2048.8,0.7738]
[1742960851183,14.4842,2049.2,2048.8,0.7738]
[1742960851486,4.88019,2049.1,2048.8,0.7738]
[1742960851688,4.88019,2049.1,2048.6,4.88128]
[1742960851689,5.67846,2049.0,2048.6,4.88128]
[1742960852007,6.92872347,2049.1,2048.7,4.88112]
[1742960852212,4.88034,2049.1,2048.7,5.65492]
[1742960852423,9.76068,2049.1,2048.7,0.7738]
[1742960852631,4.88044,2049.0,2048.7,0.7738]
[1742960852838,6.92872347,2049.1,2048.7,0.7738]
[1742960853141,9.76072,2049.1,2048.7,0.7738]
[1742960853629,10.40198,2049.2,2048.7,5.65477]
[1742960853916,4.724,2049.2,2048.8,9.76152]
[1742960854080,4.724,2049.2,2048.8,4.88072]
[1742960854281,9.60397,2049.2,2048.8,4.88072]
[1742960854479,9.60397,2049.2,2048.7,6.220407]
[1742960854480,4.88021,2049.1,2048.7,6.220317]
[1742960854681,4.88021,2049.1,2048.7,11.101357]
[1742960854879,9.60397,2049.2,2048.7,11.101357]
[1742960855513,9.60397,2049.2,2048.8,4.88088]
[1742960856204,9.60397,2049.2,2048.9,4.88056]
[1742960856205,4.724,2049.2,2048.9,4.88056]
[1742960856513,9.60408,2049.2,2048.8,4.88088]
[1742960856688,4.88021,2049.1,2048.7,6.220347]
[1742960858188,4.88021,2049.1,2048.2,4.91794711]
[1742960858189,2.84638347,2049.1,2048.5,0.7738]
[1742960858420,4.88102,2048.8,2048.5,0.7738]
[1742960858618,4.88124,2048.7,2048.3,5.65583]
[1742960859134,4.88124,2048.7,2048.4,14.5]
[1742960859286,4.88124,2048.7,2048.3,5.65583]
[1742960859915,4.88124,2048.7,2048.3,20.15583]
[1742960860104,4.88124,2048.7,2048.3,22.659645]
[1742960862818,4.88142,2048.6,2048.3,17.777615]
[1742960863022,4.88142,2048.6,2048.3,14.5]
[1742960863423,4.88165,2048.5,2048.3,14.5]
[1742960864846,4.88142,2048.6,2048.3,14.5]
[1742960865343,9.76301,2048.6,2048.3,14.5]
[1742960865547,4.88142,2048.6,2048.3,14.5]
[1742960866750,4.88162,2048.5,2048.3,14.5]
[1742960867412,4.88185,2048.4,2047.9,9.62608845]
[1742960867617,4.88185,2048.4,2048.0,1.16744719]
[1742960868146,0.8245,2048.5,2048.1,19.38234]
[1742960868334,4.88158,2048.6,2048.2,4.88223]
[1742960868539,15.30804,2048.7,2048.3,0.785]
[1742960868941,15.30804,2048.7,2048.4,14.5]
[1742960868942,15.30797,2048.7,2048.4,14.5]
[1742960869452,4.88143,2048.6,2048.4,14.5]
[1742960870320,12.47508347,2048.7,2048.4,14.5]
[1742960870551,17.35642347,2048.7,2048.4,14.5]
[1742960870952,4.88142,2048.6,2048.4,14.5]
[1742960874055,12.47508347,2048.7,2048.4,14.5]
[1742960874245,9.59394,2048.8,2048.4,21.886667]
[1742960874852,4.88053,2049.0,2048.6,5.6457]
[1742960875032,10.41585,2049.1,2048.7,4.88104]
[1742960875232,4.715,2049.1,2048.7,4.881]
[1742960875436,7.715,2049.1,2048.8,15.06455]
[1742960875844,7.715,2049.1,2048.8,0.56455]
[1742960876046,12.5952,2049.1,2048.8,0.56455]
[1742960876267,7.715,2049.1,2048.8,0.56455]
[1742960876450,7.715,2049.1,2048.8,15.06455]
[1742960877056,7.715,2049.1,2048.8,19.94528]
[1742960877252,3.0,2049.1,2048.9,3.247141]
[1742960877432,7.74876347,2049.3,2048.9,8.127711]
[1742960877762,6.92816347,2049.3,2048.9,8.127711]
[1742960878364,6.92816347,2049.3,2048.9,8.127681]
[1742960878671,6.92816347,2049.3,2048.9,5.64504]
[1742960878972,11.80807347,2049.3,2049.0,14.5]
[1742960879463,11.80802347,2049.3,2049.0,14.5]
[1742960879667,4.87978,2049.3,2049.0,14.5]
[1742960879873,6.92816347,2049.3,2049.0,14.5]
[1742960880375,11.80810347,2049.3,2048.9,0.7645]
[1742960880950,4.87996,2049.2,2048.9,0.7645]
[1742960884739,9.92810347,2049.3,2048.9,5.64513]
[1742960885274,5.04838347,2049.3,2048.9,5.64502]
[1742960885454,9.92812347,2049.3,2048.9,8.204069]
[1742960886339,4.87947,2049.4,2049.0,4.88032]
[1742960886536,12.44327347,2049.5,2049.0,4.8802]
[1742960886770,10.39489,2049.5,2049.1,4.88008]
[1742960886946,7.87929,2049.5,2049.1,4.88008]
[1742960887145,7.87929,2049.5,2049.2,0.976028]
[1742960887346,3.0,2049.5,2049.2,1.740528]
[1742960887838,2.04838347,2049.6,2049.2,6.620408]
[1742960888068,6.92753347,2049.6,2049.2,1.740528]
[1742960888437,6.92753347,2049.6,2049.2,16.240528]
[1742960889371,4.87928,2049.5,2049.2,16.240528]
[1742960889576,4.87928,2049.5,2049.2,15.476028]
[1742960890381,2.04838347,2049.6,2049.2,20.355968]
[1742960890701,2.04838347,2049.6,2049.3,2.6000588]
[1742960890856,2.04838347,2049.6,2049.2,20.355968]
[1742960891353,6.92746347,2049.6,2049.2,20.355968]
[1742960892578,7.87882,2049.7,2049.4,0.8149]
[1742960892879,2.04838347,2049.6,2049.4,0.8149]
[1742960893253,6.92741347,2049.6,2049.2,20.355918]
[1742960893451,6.92741347,2049.6,2049.3,1.86825764]
[1742960893750,6.92741347,2049.6,2049.2,21.170818]
[1742960895587,2.04838347,2049.6,2049.2,21.170818]
[1742960896188,5.04838347,2049.7,2049.3,4.87969]
[1742960896367,9.56133,2049.9,2049.4,4.87938]
[1742960896573,3.0,2049.9,2049.5,15.3149]
[1742960896887,2.04838347,2049.8,2049.6,1.0]
[1742960897056,2.04838347,2049.8,2049.6,5.87895]
[1742960897260,6.92651347,2050.0,2049.6,1.0]
[1742960897487,6.92651347,2050.0,2049.6,5.87887]
[1742960897666,2.04838347,2049.8,2049.6,3.8092335]
[1742960898274,6.92693347,2049.8,2049.6,1.0]
[1742960898662,2.04838347,2049.8,2049.6,1.0]
[1742960899663,2.04838347,2049.8,2049.6,6.6938]
[1742960901099,2.04838347,2049.8,2049.6,6.69386]
[1742960902162,6.92649347,2050.0,2049.6,6.69386]
[1742960902367,6.92649347,2050.0,2049.6,9.301149]
[1742960903599,2.04838347,2050.0,2049.6,14.179949]
[1742960904800,2.04838347,2050.0,2049.6,9.300989]
[1742960905197,2.04838347,2050.0,2049.6,14.179879]
[1742960905501,2.04838347,2050.0,2049.6,9.300989]
[1742960905795,2.04838347,2050.0,2049.7,1.4180209]
[1742960905972,2.04838347,2050.0,2049.7,6.2967709]
[1742960906174,2.04838347,2050.0,2049.7,1.4180209]
[1742960906879,6.92644347,2050.0,2049.7,1.4180209]
[1742960907095,4.87832,2049.9,2049.6,1.8149]
[1742960907296,6.92644347,2050.0,2049.7,14.5]